bitfinex/quotes_BTCUSD_20241022
["timestamp","ask_amount","ask_price","bid_price","bid_amount"]
[1729605047012,0.54237336,66835.0,66834.0,0.19036582]
[1729605047656,0.6098107,66835.0,66834.0,0.19036582]
[1729605047877,0.55437336,66835.0,66834.0,0.19036582]
[1729605049169,0.70399536,66835.0,66834.0,0.19036582]
[1729605049380,0.55437336,66835.0,66834.0,0.19036582]
[1729605049847,0.55437336,66835.0,66834.0,0.1743803]
[1729605049848,0.70399536,66835.0,66834.0,0.1743803]
[1729605050529,0.55437336,66835.0,66834.0,0.17662387]
[1729605050967,0.70399536,66835.0,66834.0,0.18813474]
[1729605051197,0.55437336,66835.0,66834.0,0.1743803]
[1729605051649,0.55437336,66835.0,66834.0,0.18813474]
[1729605052088,0.55437336,66835.0,66834.0,0.1743803]
[1729605052524,1.05733635,66835.0,66834.0,0.1743803]
[1729605052742,0.161626,66833.0,66832.0,0.05999999]
[1729605052950,0.012,66833.0,66832.0,0.05999999]
[1729605053170,0.161626,66833.0,66832.0,0.05999999]
[1729605053884,0.38988515,66833.0,66832.0,0.05999999]
[1729605054108,0.24494,66827.0,66826.0,0.02426308]
[1729605054330,1.10884587,66827.0,66826.0,0.02426308]
[1729605054561,0.423546,66824.0,66823.0,0.000846]
[1729605054805,0.57050515,66824.0,66823.0,0.000846]
[1729605055706,0.57050515,66824.0,66822.0,0.06084599]
[1729605055707,0.446549,66823.0,66822.0,0.06084599]
[1729605055933,0.014,66816.0,66815.0,0.000846]
[1729605056153,0.014,66816.0,66810.0,0.0029221]
[1729605056154,0.186666,66815.0,66810.0,0.0029221]
[1729605056376,0.44785336,66809.0,66808.0,0.19950772]
[1729605056579,0.42285336,66809.0,66808.0,0.19950772]
[1729605056808,0.42285336,66809.0,66800.0,0.130946]
[1729605056809,0.161684,66807.0,66800.0,0.130946]
[1729605057025,0.31064315,66807.0,66800.0,0.130946]
[1729605057267,0.012,66807.0,66801.0,0.001]
[1729605057480,0.16095915,66807.0,66802.0,0.2237587]
[1729605057708,0.57181651,66807.0,66802.0,0.2237587]
[1729605057924,0.42213251,66807.0,66802.0,0.2237587]
[1729605058366,0.42213251,66807.0,66806.0,0.08342826]
[1729605058585,0.49784576,66807.0,66806.0,0.08442826]
[1729605058803,0.42213251,66807.0,66806.0,0.08342826]
[1729605059025,0.57181651,66807.0,66806.0,0.08342826]
[1729605059239,0.42213251,66807.0,66806.0,0.08342826]
[1729605059457,0.59681651,66807.0,66806.0,0.08342826]
[1729605060782,0.59681651,66807.0,66806.0,0.08542826]
[1729605060783,0.61281651,66807.0,66806.0,0.08542826]
[1729605060997,0.75977566,66807.0,66806.0,0.08542826]
[1729605061236,0.75477566,66807.0,66806.0,0.08442826]
[1729605061451,0.75777566,66807.0,66806.0,0.08442826]
[1729605061884,0.74377566,66807.0,66806.0,0.08342826]
[1729605062109,0.76877566,66807.0,66806.0,0.08542826]
[1729605062328,0.76877566,66807.0,66806.0,0.06199999]
[1729605062546,0.75977566,66807.0,66806.0,0.06099999]
[1729605062758,0.77177566,66807.0,66806.0,0.06199999]
[1729605063843,0.75777566,66807.0,66806.0,0.06099999]
[1729605064371,0.75777566,66807.0,66806.0,0.06199999]
[1729605064372,0.5066023,66807.0,66806.0,0.06199999]
[1729605064581,0.68083819,66807.0,66806.0,0.06199999]
[1729605065011,0.66883819,66807.0,66806.0,0.06099999]
[1729605065478,0.68183819,66807.0,66806.0,0.06199999]
[1729605066947,1.04761967,66807.0,66806.0,0.03974606]
[1729605067231,0.186711,66795.0,66790.0,0.2237587]
[1729605067527,0.186711,66795.0,66786.0,0.11235042]
[1729605067528,0.286729,66787.0,66786.0,0.11235042]
[1729605067776,0.286729,66787.0,66762.0,9e-05]
[1729605067777,0.163783,66763.0,66762.0,9e-05]
[1729605068013,0.002,66742.0,66735.0,0.06005263]
[1729605068239,0.112,66741.0,66735.0,0.06005263]
[1729605068459,0.38162475,66750.0,66735.0,0.06005263]
[1729605068460,0.279844,66736.0,66735.0,0.06005263]
[1729605068679,0.2692497,66736.0,66735.0,0.06005263]
[1729605068895,0.007,66736.0,66735.0,0.06005263]
[1729605069593,0.003,66742.0,66735.0,0.06005263]
[1729605069816,0.007,66736.0,66735.0,0.06005263]
[1729605070474,0.007,66736.0,66735.0,0.20989863]
[1729605070690,0.007,66736.0,66735.0,0.06005263]
[1729605070910,0.017,66736.0,66735.0,0.20989863]
[1729605071125,0.007,66736.0,66735.0,0.07446551]
[1729605071577,0.018,66736.0,66735.0,0.07446551]
[1729605071802,0.025,66736.0,66735.0,0.07446551]
[1729605072014,0.006,66736.0,66735.0,0.06005263]
[1729605072230,0.013,66736.0,66735.0,0.06005263]
[1729605072444,0.013,66736.0,66735.0,0.07450398]
[1729605072659,0.021,66736.0,66735.0,0.07450398]
[1729605072891,0.1871275,66736.0,66735.0,0.07450398]
[1729605073108,0.18624265,66736.0,66735.0,0.06005263]
[1729605073757,0.16995915,66736.0,66735.0,0.07450398]
[1729605073985,0.014,66736.0,66735.0,0.22434998]
[1729605074205,0.014,66736.0,66735.0,0.07450398]
[1729605074864,0.008,66736.0,66735.0,0.07450398]
[1729605075078,0.005,66740.0,66735.0,0.07450398]
[1729605075294,0.6428524,66736.0,66735.0,0.07450398]
[1729605075518,0.56805285,66736.0,66735.0,0.07450398]
[1729605075791,0.59205285,66736.0,66735.0,0.06005263]
[1729605076003,0.59405285,66736.0,66735.0,0.06105263]
[1729605076219,0.743012,66736.0,66735.0,0.06105263]
[1729605076433,0.820612,66736.0,66735.0,0.06105263]
[1729605076651,0.820612,66736.0,66735.0,0.06005263]
[1729605077096,0.919612,66736.0,66735.0,0.06005263]
[1729605077322,0.009,66730.0,66729.0,0.00191876]
[1729605077538,0.69306585,66730.0,66729.0,0.00191876]
[1729605077760,0.7067775,66730.0,66729.0,0.00191876]
[1729605077976,0.59348695,66730.0,66729.0,0.00191876]
[1729605078207,0.59106585,66730.0,66729.0,0.00191876]
[1729605078447,0.59106585,66730.0,66712.0,0.01149399]
[1729605078448,0.007,66723.0,66722.0,0.2237587]
[1729605078689,0.15595915,66723.0,66722.0,0.2237587]
[1729605078913,0.007,66716.0,66715.0,0.2237587]
[1729605079138,0.299704,66733.0,66715.0,0.2237587]
[1729605079139,0.007,66721.0,66720.0,0.14988]
[1729605079366,0.0776,66736.0,66723.0,0.149872]
[1729605079367,0.005,66725.0,66723.0,0.149872]
[1729605079866,0.007,66726.0,66724.0,0.01220974]
[1729605080093,0.15595915,66725.0,66724.0,0.01220974]
[1729605080320,0.15595915,66725.0,66707.0,0.2237587]
[1729605080321,0.005,66714.0,66713.0,0.149895]
[1729605080565,0.005,66714.0,66708.0,0.299812]
[1729605080566,0.002,66715.0,66708.0,0.299814]
[1729605080794,0.005,66716.0,66713.0,0.01231114]
[1729605081007,0.002,66715.0,66714.0,0.149893]
[1729605081231,0.002,66715.0,66714.0,0.46198192]
[1729605081475,0.007,66716.0,66714.0,0.31208892]
[1729605081725,0.007,66716.0,66715.0,0.149891]
[1729605081952,0.007,66716.0,66714.0,0.31208892]
[1729605081953,0.002,66722.0,66721.0,0.299754]
[1729605082243,0.002,66720.0,66715.0,0.03574868]
[1729605082514,0.005,66719.0,66715.0,0.02345598]
[1729605082730,0.002,66720.0,66715.0,0.02345598]
[1729605082731,0.005,66717.0,66715.0,0.02345598]
[1729605083187,0.005,66717.0,66713.0,0.149895]
[1729605083427,0.002,66718.0,66717.0,0.149886]
[1729605083649,0.002,66718.0,66717.0,0.15213388]
[1729605083865,0.003,66722.0,66721.0,0.149877]
[1729605084372,0.003,66722.0,66721.0,0.254877]
[1729605084594,0.003,66722.0,66721.0,0.48973615]
[1729605085018,0.003,66722.0,66721.0,0.335777]
[1729605085237,0.003,66722.0,66721.0,0.149877]
[1729605085446,0.004,66722.0,66721.0,0.149877]
[1729605085673,0.002,66729.0,66728.0,0.149862]
[1729605085890,0.002,66729.0,66726.0,0.299729]
[1729605086099,0.002,66729.0,66728.0,0.149862]
[1729605086306,0.002,66729.0,66722.0,0.299751]
[1729605086514,0.002,66729.0,66722.0,0.149874]
[1729605086733,0.002,66729.0,66721.0,0.001]
[1729605086941,0.007,66730.0,66723.0,0.299746]
[1729605087370,0.007,66730.0,66724.0,0.149869]
[1729605087579,0.007,66730.0,66724.0,0.2237587]
[1729605087580,0.002,66730.0,66724.0,0.2237587]
[1729605087788,0.005,66735.0,66725.0,0.1]
[1729605088009,0.007,66736.0,66725.0,0.1]
[1729605088246,0.005,66741.0,66729.0,0.399719]
[1729605088489,0.007,66741.0,66728.0,0.005]
[1729605088704,0.2257587,66740.0,66729.0,0.1]
[1729605088924,0.2257587,66740.0,66732.0,0.00224729]
[1729605088925,0.2622497,66737.0,66732.0,0.00224729]
[1729605089143,0.15095915,66740.0,66735.0,0.149844]
[1729605089367,0.15095915,66740.0,66729.0,0.1]
[1729605089368,0.0149,66720.0,66680.0,0.0001069]
[1729605089586,0.192922,66701.0,66680.0,0.0001069]
[1729605089813,0.192922,66701.0,66681.0,0.00133501]
[1729605089814,0.01866499,66701.0,66681.0,0.00133501]
[1729605090031,0.16858699,66701.0,66681.0,0.00133501]
[1729605090479,0.43083669,66701.0,66680.0,0.0001069]
[1729605090917,0.45383669,66701.0,66681.0,0.149967]
[1729605091150,0.45383669,66701.0,66680.0,0.0001069]
[1729605091807,0.45035965,66701.0,66680.0,0.0001069]
[1729605092043,0.15858699,66701.0,66680.0,0.0001069]
[1729605092267,0.16858699,66701.0,66683.0,0.149961]
[1729605092490,0.18258699,66701.0,66685.0,0.149957]
[1729605092702,0.16858699,66701.0,66685.0,0.149958]
[1729605092911,0.16858699,66701.0,66686.0,0.149955]
[1729605093131,0.03266499,66701.0,66682.0,0.299927]
[1729605093348,0.18258699,66701.0,66682.0,0.299927]
[1729605093562,0.03266499,66701.0,66685.0,0.299916]
[1729605093773,0.04366499,66701.0,66700.0,0.11092599]
[1729605094239,0.02966499,66701.0,66700.0,0.11092599]
[1729605094466,0.005,66701.0,66700.0,0.11092599]
[1729605094694,0.012,66701.0,66700.0,0.26085099]
[1729605094982,0.019,66701.0,66700.0,0.26085099]
[1729605095214,0.033,66701.0,66700.0,0.11092599]
[1729605095425,0.005,66701.0,66700.0,0.11092599]
[1729605095843,0.017,66701.0,66700.0,0.13438988]
[1729605096027,0.01,66701.0,66700.0,0.13438988]
[1729605096933,0.005,66701.0,66700.0,0.11092599]
[1729605097149,0.34054614,66701.0,66700.0,0.11092599]
[1729605097365,0.36638161,66701.0,66700.0,0.11092599]
[1729605097578,0.36738161,66701.0,66700.0,0.11092599]
[1729605097791,0.35438161,66701.0,66700.0,0.11092599]
[1729605098002,0.48034076,66701.0,66700.0,0.11092599]
[1729605098645,0.48734076,66701.0,66700.0,0.11092599]
[1729605098851,0.49534076,66701.0,66700.0,0.11092599]
[1729605099064,0.18945961,66701.0,66700.0,0.11092599]
[1729605099280,0.18579462,66701.0,66700.0,0.11092599]
[1729605099499,0.33654614,66701.0,66700.0,0.11092599]
[1729605099798,9.33654614,66701.0,66700.0,0.11092599]
[1729605099991,9.48550529,66701.0,66700.0,0.11092599]
[1729605100190,9.49933745,66701.0,66700.0,0.11092599]
[1729605100402,9.48550529,66701.0,66700.0,0.11092599]
[1729605100615,9.49133741,66701.0,66700.0,0.11092599]
[1729605100825,9.48233741,66701.0,66700.0,0.11092599]
[1729605101039,9.48033727,66701.0,66700.0,0.11092599]
[1729605101283,0.45384169,66699.0,66698.0,7.495e-05]
[1729605101496,0.61863282,66699.0,66698.0,7.495e-05]
[1729605101705,0.71863282,66699.0,66698.0,7.495e-05]
[1729605102614,0.73263282,66699.0,66698.0,7.495e-05]
[1729605102829,0.73063282,66699.0,66698.0,7.495e-05]
[1729605103041,0.8258246,66699.0,66698.0,7.495e-05]
[1729605103727,0.8238246,66699.0,66698.0,7.495e-05]
[1729605103932,0.8118246,66699.0,66698.0,7.495e-05]
[1729605104351,0.8258246,66699.0,66698.0,7.495e-05]
[1729605104801,0.81199262,66699.0,66698.0,7.495e-05]
[1729605105014,0.82599262,66699.0,66698.0,7.495e-05]
[1729605105238,0.81199262,66699.0,66698.0,0.00090195]
[1729605105699,0.8258236,66699.0,66698.0,0.00090195]
[1729605105935,0.8118236,66699.0,66698.0,0.00090195]
[1729605106196,0.8238236,66699.0,66698.0,0.00090195]
[1729605106418,0.02783098,66699.0,66698.0,0.50040195]
[1729605106633,0.019,66699.0,66698.0,0.65033095]
[1729605106856,0.014,66699.0,66698.0,0.65033095]
[1729605107070,0.014,66699.0,66698.0,0.65166596]
[1729605107518,0.033,66699.0,66698.0,0.65166596]
[1729605107739,0.019,66699.0,66698.0,0.65166596]
[1729605107943,0.005,66699.0,66698.0,0.65166596]
[1729605108160,0.006,66699.0,66698.0,0.65166596]
[1729605108381,0.019,66699.0,66698.0,0.65166596]
[1729605108836,0.06228371,66699.0,66698.0,0.50040195]
[1729605109062,0.06128371,66699.0,66698.0,0.65033095]
[1729605109291,0.15495915,66699.0,66698.0,0.50240195]
[1729605109511,0.30588615,66699.0,66698.0,0.50240195]
[1729605109725,0.15595915,66699.0,66698.0,0.50240195]
[1729605109938,0.30588615,66699.0,66698.0,0.50240195]
[1729605110204,0.3049183,66699.0,66698.0,0.50240195]
[1729605110665,0.007,66699.0,66698.0,0.65233095]
[1729605110941,0.006,66699.0,66698.0,0.65233095]
[1729605111192,0.009,66699.0,66698.0,0.65233095]
[1729605111406,0.005,66700.0,66698.0,0.50040195]
[1729605111660,9.001654,66701.0,66700.0,0.15126001]
[1729605112627,9.001654,66701.0,66700.0,0.30021916]
[1729605112863,9.001654,66701.0,66700.0,0.40021916]
[1729605113334,9.001654,66701.0,66700.0,0.25126001]
[1729605113545,9.002654,66701.0,66700.0,0.25326001]
[1729605114005,9.003654,66701.0,66700.0,0.25326001]
[1729605114260,9.002654,66701.0,66700.0,0.25326001]
[1729605114475,9.007654,66701.0,66700.0,0.15326001]
[1729605114694,9.008654,66701.0,66700.0,0.15326001]
[1729605114915,9.007654,66701.0,66700.0,0.15326001]
[1729605115151,9.06104426,66701.0,66700.0,0.151925]
[1729605115361,9.007654,66701.0,66700.0,0.15326001]
[1729605115566,9.006654,66701.0,66700.0,0.149925]
[1729605115784,9.007654,66701.0,66700.0,0.149925]
[1729605115995,9.008654,66701.0,66700.0,0.151925]
[1729605116646,9.008654,66701.0,66700.0,0.00333501]
[1729605116888,9.008654,66701.0,66700.0,0.15326001]
[1729605117117,9.008654,66701.0,66698.0,0.50040195]
[1729605117118,0.005,66699.0,66698.0,0.50040195]
[1729605117340,9.001654,66701.0,66698.0,0.50040195]
[1729605117341,0.005,66700.0,66698.0,0.50040195]
[1729605117561,0.005,66700.0,66699.0,0.149927]
[1729605117863,0.005,66700.0,66699.0,0.37481287]
[1729605117968,0.005,66700.0,66699.0,0.149927]
[1729605118399,0.005,66700.0,66698.0,0.80025995]
[1729605118605,0.005,66700.0,66699.0,0.149927]
[1729605119481,9.011654,66701.0,66700.0,0.149925]
[1729605119694,9.006654,66701.0,66700.0,0.149925]
[1729605119915,9.001654,66701.0,66700.0,0.37614588]
[1729605120134,9.001654,66701.0,66700.0,0.15126001]
[1729605120845,9.001654,66701.0,66699.0,0.299853]
[1729605120846,0.005,66700.0,66699.0,0.249926]
[1729605121072,0.005,66700.0,66699.0,0.25126101]
[1729605121740,0.005,66700.0,66699.0,0.149926]
[1729605122201,0.154927,66699.0,66698.0,0.50040195]
[1729605122416,0.33144624,66699.0,66698.0,0.50040195]
[1729605122633,0.35644624,66699.0,66698.0,0.50040195]
[1729605122852,0.35444624,66699.0,66698.0,0.50040195]
[1729605123105,0.50340539,66699.0,66698.0,0.50040195]
[1729605123316,0.50540539,66699.0,66698.0,0.50040195]
[1729605123528,0.5943954,66699.0,66698.0,0.50140195]
[1729605123759,0.80061355,66699.0,66698.0,0.50140195]
[1729605123968,0.78672354,66699.0,66698.0,0.50040195]
[1729605124214,0.80061217,66699.0,66698.0,0.50040195]
[1729605124460,0.81661217,66699.0,66698.0,0.50040195]
[1729605124670,0.80272354,66699.0,66698.0,0.50040195]
[1729605124899,0.80072354,66699.0,66698.0,0.50040195]
[1729605125113,0.81472354,66699.0,66698.0,0.50040195]
[1729605125346,0.81460863,66699.0,66698.0,0.50040195]
[1729605125622,0.80260863,66699.0,66698.0,0.50040195]
[1729605125838,0.81460863,66699.0,66698.0,0.50040195]
[1729605126089,0.81472354,66699.0,66698.0,0.50040195]
[1729605126357,0.81672354,66699.0,66698.0,0.50040195]
[1729605126583,0.91660657,66699.0,66698.0,0.50040195]
[1729605126847,0.93060657,66699.0,66698.0,0.46991643]
[1729605127105,0.91660715,66699.0,66698.0,0.46991643]
[1729605127348,0.753648,66699.0,66698.0,0.46991643]
[1729605127577,0.767648,66699.0,66698.0,0.46991643]
[1729605127823,0.753648,66699.0,66698.0,0.46991643]
[1729605128089,0.767648,66699.0,66698.0,0.46991643]
[1729605128347,0.767648,66699.0,66689.0,0.22488587]
[1729605128348,0.19361199,66690.0,66689.0,0.22488587]
[1729605128582,0.69804835,66690.0,66689.0,0.22488587]
[1729605128815,0.72027189,66690.0,66689.0,0.22488587]
[1729605129059,0.16862799,66683.0,66682.0,0.22488587]
[1729605129296,0.15395915,66683.0,66682.0,0.22488587]
[1729605129517,0.005,66683.0,66682.0,0.149965]
[1729605129984,0.005,66685.0,66684.0,0.00133501]
[1729605130212,0.019,66690.0,66689.0,0.149949]
[1729605130434,0.014,66690.0,66689.0,0.25128401]
[1729605130654,0.014,66690.0,66689.0,0.25353259]
[1729605130898,0.014,66690.0,66689.0,0.41249174]
[1729605131115,0.001654,66700.0,66699.0,0.15126201]
[1729605131342,0.22653987,66700.0,66699.0,0.15126201]
[1729605131589,0.001654,66700.0,66699.0,0.15126201]
[1729605131821,0.001654,66700.0,66699.0,0.149927]
[1729605131822,0.006654,66700.0,66699.0,0.149927]
[1729605132040,0.005,66692.0,66691.0,0.15128001]
[1729605132253,0.005,66692.0,66691.0,0.37616588]
[1729605132469,0.005,66692.0,66690.0,0.149945]
[1729605132676,0.005,66690.0,66689.0,0.00224858]
[1729605132904,0.005,66690.0,66689.0,0.15219758]
[1729605134021,0.005,66690.0,66689.0,0.149949]
[1729605134494,0.007,66690.0,66689.0,0.149949]
[1729605134717,0.007,66690.0,66682.0,0.000827]
[1729605134718,0.005,66683.0,66682.0,0.000827]
[1729605134944,0.70631001,66683.0,66682.0,0.000827]
[1729605135160,0.80829921,66683.0,66682.0,0.000827]
[1729605135584,0.65833621,66683.0,66682.0,0.000827]
[1729605135827,0.81329921,66683.0,66682.0,0.000827]
[1729605136039,0.8219642,66683.0,66682.0,0.000827]
[1729605136913,0.8219642,66683.0,66682.0,0.002827]
[1729605136914,0.83583965,66683.0,66682.0,0.002827]
[1729605137380,0.8975642,66683.0,66682.0,0.000827]
[1729605137590,0.8219642,66683.0,66682.0,0.000827]
[1729605137801,0.84483899,66683.0,66682.0,0.000827]
[1729605138013,0.85483899,66683.0,66682.0,0.000827]
[1729605138253,0.84483899,66683.0,66682.0,0.000827]
[1729605138494,0.84483899,66683.0,66672.0,0.00234953]
[1729605138495,0.170015,66660.0,66659.0,4.029e-05]
[1729605138720,0.40738786,66660.0,66659.0,4.029e-05]
[1729605138946,0.005,66660.0,66659.0,0.15005729]
[1729605139176,0.005,66661.0,66660.0,0.150015]
[1729605140112,0.005,66661.0,66659.0,4.029e-05]
[1729605140337,0.005,66661.0,66660.0,0.150015]
[1729605140559,0.005,66663.0,66660.0,0.300029]
[1729605140773,0.005,66663.0,66659.0,4.029e-05]
[1729605140774,0.005,66663.0,66662.0,0.15001]
[1729605141057,0.005,66662.0,66660.0,0.001]
[1729605141277,0.005,66661.0,66660.0,0.001]
[1729605141498,0.15395915,66661.0,66660.0,0.001]
[1729605141710,0.16395915,66661.0,66660.0,0.001]
[1729605141932,0.15395915,66661.0,66660.0,0.001]
[1729605142125,0.15395915,66661.0,66659.0,4.029e-05]
[1729605142370,0.005,66660.0,66659.0,4.029e-05]
[1729605142804,0.01,66660.0,66659.0,4.029e-05]
[1729605143012,0.005,66660.0,66659.0,4.029e-05]
[1729605143447,0.155015,66660.0,66659.0,4.029e-05]
[1729605143669,0.14895915,66660.0,66659.0,4.029e-05]
[1729605143889,0.005,66671.0,66659.0,4.029e-05]
[1729605143890,0.005,66661.0,66659.0,4.029e-05]
[1729605144106,0.015,66660.0,66659.0,4.029e-05]
[1729605144757,0.015,66660.0,66659.0,0.15005729]
[1729605144987,0.015,66660.0,66659.0,4.029e-05]
[1729605145415,0.024,66660.0,66659.0,4.029e-05]
[1729605145640,0.014,66660.0,66659.0,0.15005729]
[1729605145900,0.009,66660.0,66659.0,0.22985729]
[1729605146451,0.009,66660.0,66659.0,0.07984029]
[1729605146708,0.009,66660.0,66659.0,0.23210689]
[1729605146961,0.009,66660.0,66659.0,0.15430689]
[1729605147221,0.005,66663.0,66659.0,0.00428989]
[1729605147469,0.001,66660.0,66659.0,0.15330689]
[1729605147698,0.005,66670.0,66659.0,0.32440668]
[1729605147915,0.005,66670.0,66667.0,0.149998]
[1729605148160,0.005,66670.0,66662.0,0.300021]
[1729605148401,0.005,66670.0,66669.0,0.149994]
[1729605148608,0.005,66670.0,66667.0,0.149997]
[1729605149069,0.005,66665.0,66659.0,0.23837684]
[1729605149327,0.001,66670.0,66659.0,0.01749097]
[1729605149328,0.005,66660.0,66659.0,0.01749097]
[1729605149540,0.30397415,66660.0,66659.0,0.01749097]
[1729605149773,0.41111185,66660.0,66659.0,0.01749097]
[1729605150021,0.42111185,66660.0,66659.0,0.00104029]
[1729605150229,0.42111185,66660.0,66659.0,4.029e-05]
[1729605151089,0.41111185,66660.0,66659.0,4.029e-05]
[1729605151306,0.42211185,66660.0,66659.0,4.029e-05]
[1729605152364,0.27209685,66660.0,66659.0,4.029e-05]
[1729605152618,0.15995915,66660.0,66659.0,4.029e-05]
[1729605152834,0.15695915,66660.0,66659.0,4.029e-05]
[1729605153047,0.16195915,66660.0,66659.0,4.029e-05]
[1729605153485,0.16695915,66660.0,66659.0,4.029e-05]
[1729605154129,0.15695915,66660.0,66659.0,0.00086729]
[1729605154347,9.17415506,66660.0,66659.0,0.00086729]
[1729605154565,0.87050486,66659.0,66658.0,0.00653701]
[1729605154803,0.170019,66658.0,66657.0,0.000848]
[1729605155019,0.48178109,66658.0,66657.0,0.000848]
[1729605156318,0.15895915,66658.0,66657.0,0.000848]
[1729605156504,0.42166847,66658.0,66657.0,0.000848]
[1729605156761,0.58168747,66658.0,66657.0,0.000848]
[1729605157193,0.59552498,66658.0,66657.0,0.000848]
[1729605157452,0.58168747,66658.0,66657.0,0.000848]
[1729605157675,0.72064662,66658.0,66657.0,0.000848]
[1729605157925,0.73064662,66658.0,66657.0,0.000848]
[1729605158135,0.73064662,66658.0,66657.0,0.001848]
[1729605158570,0.75364662,66658.0,66657.0,0.02532953]
[1729605158777,0.7674782,66658.0,66657.0,0.02532953]
[1729605159022,0.7694782,66658.0,66657.0,0.02532953]
[1729605159452,0.7834782,66658.0,66657.0,0.02532953]
[1729605159659,0.7584782,66658.0,66657.0,0.02432953]
[1729605159882,0.62351905,66658.0,66657.0,0.02432953]
[1729605160106,0.60968747,66658.0,66657.0,0.02432953]
[1729605160762,0.44966847,66658.0,66657.0,0.02432953]
[1729605161004,0.033,66658.0,66657.0,0.02432953]
[1729605161253,0.033,66658.0,66657.0,0.17435053]
[1729605161487,0.033,66658.0,66657.0,0.02432953]
[1729605161488,0.3309183,66658.0,66657.0,0.02432953]
[1729605161698,0.63267462,66658.0,66657.0,0.02432953]
[1729605161916,0.49578375,66658.0,66657.0,0.02432953]
[1729605162357,0.52178375,66658.0,66657.0,0.02432953]
[1729605162791,0.50478375,66658.0,66657.0,0.02432953]
[1729605163004,0.50678375,66658.0,66657.0,0.02432953]
[1729605163245,0.52078375,66658.0,66657.0,0.02432953]
[1729605164148,0.53478375,66658.0,66657.0,0.02432953]
[1729605164361,0.51178375,66658.0,66657.0,0.02432953]
[1729605164790,0.172024,66656.0,66655.0,0.003]
[1729605165028,0.34398315,66656.0,66655.0,0.003]
[1729605165456,0.3578498,66656.0,66655.0,0.0264842]
[1729605165667,0.3578498,66656.0,66655.0,0.00245199]
[1729605165886,0.3578498,66656.0,66650.0,0.101]
[1729605165887,0.37171677,66656.0,66650.0,0.101]
[1729605166093,0.34198715,66654.0,66650.0,0.101]
[1729605166309,0.62056312,66654.0,66653.0,0.00507725]
[1729605166522,0.34672071,66654.0,66653.0,0.00507725]
[1729605166730,0.61856312,66654.0,66653.0,0.00507725]
[1729605166947,0.62056312,66654.0,66653.0,0.00507725]
[1729605167196,0.7137549,66654.0,66653.0,0.00507725]
[1729605167631,0.7237549,66654.0,66653.0,0.00507725]
[1729605167864,0.7117549,66654.0,66653.0,0.00507725]
[1729605168078,0.7137549,66654.0,66653.0,0.00507725]
[1729605168527,0.67488825,66654.0,66653.0,0.00507725]
[1729605168774,0.70262031,66654.0,66653.0,0.00507725]
[1729605168985,0.70275412,66654.0,66653.0,0.00507725]
[1729605169268,0.71675412,66654.0,66653.0,0.00507725]
[1729605169502,0.60956234,66654.0,66653.0,0.00507725]
[1729605169715,0.16782502,66654.0,66653.0,0.00507725]
[1729605169966,0.19582502,66654.0,66653.0,0.00507725]
[1729605170175,0.019,66654.0,66653.0,0.00507725]
[1729605170609,0.20773432,66654.0,66653.0,0.00507725]
[1729605170857,0.62033751,66654.0,66653.0,0.00507725]
[1729605171069,0.62133751,66654.0,66653.0,0.00507725]
[1729605171282,0.62533751,66654.0,66653.0,0.00507725]
[1729605171502,0.63933751,66654.0,66653.0,0.00507725]
[1729605171973,0.62533751,66654.0,66653.0,0.00507725]
[1729605172189,0.64133751,66654.0,66653.0,0.00507725]
[1729605172612,0.63933751,66654.0,66653.0,0.00507725]
[1729605172854,0.66139141,66654.0,66653.0,0.00507725]
[1729605173057,0.38468209,66654.0,66653.0,0.00507725]
[1729605173265,0.66139141,66654.0,66653.0,0.00507725]
[1729605173470,0.66639141,66654.0,66653.0,0.00507725]
[1729605173683,0.21787892,66654.0,66653.0,0.00507725]
[1729605174123,0.23187892,66654.0,66653.0,0.00507725]
[1729605174366,0.46672164,66654.0,66653.0,0.00507725]
[1729605174784,0.61674964,66654.0,66653.0,0.00507725]
[1729605174994,0.45285504,66654.0,66653.0,0.00507725]
[1729605175214,0.68816093,66654.0,66653.0,0.02855984]
[1729605175456,0.70316093,66654.0,66653.0,0.02855984]
[1729605175682,0.87506093,66654.0,66653.0,0.02855984]
[1729605175905,0.71216093,66654.0,66653.0,0.02855984]
[1729605176548,0.71116093,66654.0,66653.0,0.02855984]
[1729605176767,0.69816093,66654.0,66653.0,0.02855984]
[1729605176995,0.72616093,66654.0,66653.0,0.02855984]
[1729605177417,0.45285504,66654.0,66653.0,0.02855984]
[1729605177623,0.62688304,66654.0,66653.0,0.02855984]
[1729605178042,0.61288304,66654.0,66653.0,0.02855984]
[1729605178411,0.46685504,66654.0,66653.0,0.02855984]
[1729605178608,0.62688304,66654.0,66653.0,0.02855984]
[1729605178843,0.61288304,66654.0,66653.0,0.02855984]
[1729605179021,0.73608004,66654.0,66653.0,0.02855984]
[1729605179156,0.74008004,66654.0,66653.0,0.02855984]
[1729605179383,0.81718004,66654.0,66653.0,0.02855984]
[1729605179856,0.155046,66646.0,66644.0,0.006]
[1729605180067,0.65764551,66646.0,66644.0,0.006]
[1729605180277,0.43057771,66646.0,66644.0,0.006]
[1729605180493,0.58062371,66646.0,66645.0,0.07348509]
[1729605180942,0.43057771,66646.0,66645.0,0.07348509]
[1729605181165,0.58062371,66646.0,66645.0,0.07348509]
[1729605181383,0.59062371,66646.0,66645.0,0.07348509]
[1729605181583,0.71320248,66646.0,66645.0,0.07348509]
[1729605181795,0.71120248,66646.0,66645.0,0.07348509]
[1729605182230,0.71120248,66646.0,66645.0,0.07573557]
[1729605182455,0.18686839,66646.0,66645.0,0.07348509]
[1729605182666,0.33691439,66646.0,66645.0,0.07348509]
[1729605182872,0.18686839,66646.0,66645.0,0.07348509]
[1729605183074,0.18686633,66646.0,66645.0,0.07348509]
[1729605183285,0.2478276,66646.0,66645.0,0.07348509]
[1729605184602,0.3978736,66646.0,66645.0,0.07348509]
[1729605184869,0.2478276,66646.0,66645.0,0.07348509]
[1729605185109,0.3978736,66646.0,66645.0,0.07348509]
[1729605185320,0.2478276,66646.0,66645.0,0.07348509]
[1729605186819,0.09886845,66646.0,66645.0,0.07573555]
[1729605187024,0.03790718,66646.0,66645.0,0.07348509]
[1729605187484,0.03790718,66646.0,66645.0,0.07573523]
[1729605187701,0.03790718,66646.0,66645.0,0.07348509]
[1729605188560,0.03790718,66646.0,66645.0,0.22353309]
[1729605188773,0.019,66646.0,66645.0,0.30748324]
[1729605188999,0.001656,66654.0,66651.0,0.005]
[1729605189290,0.001656,66654.0,66653.0,0.42273932]